[Event "Chhattisgarh Masters GM 2022"]
[Site "Chhattisgarh"]
[Date "2022.09.21"]
[Round "3.15"]
[White "Aswath S"]
[Black "Panda Sambit"]
[Result "0-1"]
[ECO "B15"]
[WhiteElo "2135"]
[BlackElo "2363"]
[Annotator "TA"]
[PlyCount "82"]
[EventDate "2022.09.19"]
[EventCountry "IND"]
[SourceTitle "playchess.com"]
[Source "ChessBase"]
[SourceQuality "1"]
[TimeControl "5400+30"]

{[%evp 14,82,33,0,15,0,0,0,0,0,0,0,0,-8,0,-4,0,-16,0,-11,0,0,0,-9,-14,-25,-15,-29,0,0,0,-35,-19,-38,-39,-30,-31,-36,-45,-56,-44,-53,0,0,0,0,0,0,0,0,83,0,5,-39,-51,-63,-62,-98,-93,-214,-191,-161,-158,-564,-526,-1621,-1579,-29963,-12058,-5043,-1664]} 1. e4 {[%emt 0:00:08]} c6 {[%emt 0:01:03]} 2. d4 {[%emt 0:00:13]} d5 {[%emt 0:00:11]} 3. Nc3 {[%emt 0:00:07]} dxe4 {[%emt 0:00:05]} 4. Nxe4 {[%emt 0:00:06]} Nf6 {[%emt 0:00:07]} 5. Nxf6+ {[%emt 0:00:12]} exf6 {[%emt 0:00:41]} 6. Nf3 {[%emt 0:00:16]} Bd6 {[%emt 0:00:22]} 7. Bd3 {[%emt 0:00:20][%cal Bf1d3,Bd3f5,Bf5c2][%mdl 32] The main line 7.Bd3 scores better than 7.Be2.} O-O {[%emt 0:01:09]} 8. O-O {[%emt 0:00:19]} Na6 {[%emt 0:01:03] B15: Caro-Kann: 3 Nc3: 3...g6 and 3...dxe4 4 Nxe4 Nf6 5 Nxf6+ exf6.} 9. c4 {[%emt 0:02:22]} Bg4 {[%emt 0:00:42]} 10. h3 {[%emt 0:00:51]} Bh5 {[%emt 0:00:08] The position is equal.} 11. Be3 {[%emt 0:04:13]} Nc7 {[%emt 0:08:25] [#]} 12. Bf5 $146 {[%emt 0:01:19]} ({Predecessor:} 12. g4 Bg6 13. Nh4 Bxd3 14. Qxd3 g6 15. Ng2 Re8 16. Rfe1 Qd7 17. Bd2 Rxe1+ 18. Rxe1 {½-½ (41) Sveshnikov,V (2377)-David,A (2586) Bratto 2017}) 12... Re8 {[%emt 0:02:20]} 13. a3 {[%emt 0:08:01]} a5 {[%emt 0:11:05]} 14. Rc1 {[%emt 0:03:06]} a4 {[%emt 0:21:14]} 15. Bc2 {[%emt 0:03:17]} Qd7 {[%emt 0:07:16]} 16. Qd3 {[%emt 0:08:00]} Bg6 {[%emt 0:05:10] Active counter play!} 17. Qd1 {[%emt 0:00:47]} b5 {[%emt 0:09:28]} 18. Nh4 {[%emt 0:07:00]} Bxc2 {[%emt 0:12:01]} 19. Qxc2 {[%emt 0:00:23]} g6 {[%emt 0:00:12]} 20. Nf3 {[%emt 0:05:05]} Rec8 {[%emt 0:04:44]} 21. Rfd1 {[%emt 0:04:42]} bxc4 {[%emt 0:05:42]} 22. Nd2 {[%emt 0:05:10]} (22. Ne5 $5 {[%cal Re5d7]} Qe6 23. Nxc6 $11) 22... c3 {[%emt 0:01:58]} 23. Qxc3 {[%emt 0:04:51]} Nd5 {[%emt 0:00:06]} 24. Qd3 {[%emt 0:01:45]} Rab8 {[%emt 0:01:14]} 25. Nc4 {[%emt 0:05:38]} Rb3 {[%emt 0:00:04]} 26. Qc2 {[%emt 0:03:14]} Bb8 27. Rd3 {[%emt 0:04:39]} h5 {[%emt 0:06:37]} (27... Rxd3 $15 28. Qxd3 Qc7) 28. Rxb3 $11 {[%emt 0:03:39]} axb3 {[%emt 0:00:02]} 29. Qxb3 {[%emt 0:02:01]} Qc7 {[%emt 0:00:00] Against Na5. White must now prevent ...Qh2+.} 30. g3 {[%emt 0:02:23]} h4 $36 {[%emt 0:00:01][%mdl 2048] Black has some pressure.} 31. Bd2 {[%emt 0:01:04]} Ba7 {[%emt 0:02:08]} (31... Re8 $11 {keeps the balance.}) 32. Qd3 {[%emt 0:09:48]} (32. gxh4 $16 Bxd4 33. Qf3) 32... hxg3 {[%emt 0:00:02]} 33. fxg3 {[%emt 0:00:47]} Qd7 {[%emt 0:01:06]} 34. Kh2 {[%emt 0:01:34]} Kg7 {[%emt 0:00:01]} 35. Kg2 {[%emt 0:05:16] [#]} c5 $1 {[%emt 0:00:01]} 36. Be3 {[%emt 0:05:54]} (36. Re1 $17) 36... Rh8 $19 {[%emt 0:01:14]} 37. h4 {[%emt 0:00:00]} cxd4 {[%emt 0:00:38]} 38. Bxd4 {[%emt 0:00:00] [#] Now White is beyond hope.} (38. Bd2 $17 {was the crucial defense.}) 38... Qg4 $1 {[%emt 0:00:27] ( -> ...Nf4+)} 39. Be3 {[%emt 0:00:50] Against Nf4+} (39. Qf3 Qxd4) 39... Bxe3 {[%emt 0:00:16]} 40. Qxd5 {[%emt 0:00:36]} Bxc1 {[%emt 0:00:02]} 41. Nd6 {[%emt 0:00:13]} Qe2+ {[%emt 0:00:40] Weighted Error Value: White=0.66/Black=0.09 (flawless)} 0-1

[Event "Chhattisgarh Masters GM 2022"]
[Site "Chhattisgarh"]
[Date "2022.09.21"]
[Round "3.17"]
[White "Mohota, Nisha"]
[Black "Nargis, Kaumudi"]
[Result "1-0"]
[ECO "C41"]
[WhiteElo "2166"]
[BlackElo "1201"]
[Annotator "TA"]
[PlyCount "29"]
[EventDate "2022.09.19"]
[EventCountry "IND"]
[SourceTitle "playchess.com"]
[Source "ChessBase"]
[SourceQuality "1"]
[TimeControl "5400+30"]

{[%evp 9,29,38,192,193,235,223,215,204,288,-105,-78,-172,1729,1719,1490,1507,29996,29997,29997,29998,29998,29999]} 1. e4 {[%emt 0:00:04]} d6 {[%emt 0:09:23]} 2. d4 {[%emt 0:00:16]} c6 {[%emt 0:00:11]} 3. Nc3 {[%emt 0:00:13]} Nd7 {[%emt 0:00:14]} 4. Nf3 {[%emt 0:00:22]} e5 {[%emt 0:00:08]} 5. Bc4 {[%emt 0:00:50]} h6 $2 {[%emt 0:01:25]} ({Black should play} 5... Be7 $14) 6. dxe5 $18 {[%emt 0:00:27] C41: Philidor Defence.} dxe5 {[%emt 0:00:39] [#]} 7. Bxf7+ $1 {[%emt 0:00:15][%mdl 512]} Kxf7 {[%emt 0:00:23]} 8. Nxe5+ $1 {[%emt 0:00:03][%mdl 64] Pin. White is clearly better.} Kf6 {[%emt 0:00:42]} (8... Ke6 {was called for.}) 9. Qf3+ $2 {[%emt 0:02:32]} (9. Qd4 $18 Qe8 10. Nxd7+ Kg6 11. Nxf8+ Qxf8 12. f4) 9... Kxe5 $17 {[%emt 0:00:36] [#]} 10. Qf7 $146 {[%emt 0:26:28]} (10. Qf5+ $17 Kd6 11. Bf4+ Ke7 12. O-O-O) ({Predecessor:} 10. Qf5+ Kd6 11. Bf4+ Ke7 12. O-O-O Ngf6 13. Rd6 Qb6 14. Qe6+ Kd8 15. Rd2 Bb4 16. Rhd1 {0-1 (25) Nadal Garcia,L (2048)-Munoz Pantoja,M (2499) Barcelona 2008}) 10... Ndf6 $4 {[%emt 0:02:02][%mdl 8192]} (10... Qf6 $2 11. f4+ Kd6 12. e5+ Kc7 13. exf6 $18) (10... g5 $19 11. Be3 Qe7 12. f4+ Kd6) 11. f4+ $18 {[%emt 0:04:27]} Kd4 {[%emt 0:00:54]} 12. O-O {[%emt 0:03:01][%cal Oc1e3] [#] White wants to mate with Be3+!} Qe7 {[%emt 0:03:34]} 13. Rd1+ {[%emt 0:03:47] White mates.} Kc5 {[%emt 0:01:00]} 14. Be3+ {[%emt 0:00:10]} Kb4 {[%emt 0:00:41]} 15. Qb3+ {[%emt 0:00:08] Weighted Error Value: White=0.66/Black=1.52} 1-0

[Event "Chhattisgarh Masters GM 2022"]
[Site "Chhattisgarh"]
[Date "2022.09.21"]
[Round "3.18"]
[White "S, M Sharifuzzaman"]
[Black "Gaurav Rajesh Zagade"]
[Result "0-1"]
[ECO "B13"]
[WhiteElo "1352"]
[BlackElo "2160"]
[Annotator "TA"]
[PlyCount "86"]
[EventDate "2022.09.19"]
[EventCountry "IND"]
[SourceTitle "playchess.com"]
[Source "ChessBase"]
[SourceQuality "1"]
[TimeControl "5400+30"]

{[%evp 10,86,9,-6,-1,-2,-10,-45,-9,-19,-25,-48,-19,-19,-20,-68,-59,-185,-193,-230,-231,-309,-298,-296,-297,-501,-496,-504,-495,-519,-502,-516,-468,-449,-449,-513,-512,-548,-555,-613,-614,-618,-593,-626,-622,-665,-592,-587,-571,-579,-556,-683,-670,-1033,-1030,-1014,-986,-928,-924,-1452,-1383,-4678,-4312,-5110,-5062,-4134,-3107,-29976,-29977,-29978,-29979,-29979,-29978,-29978,-29979,-29993,-29994,-29996,-29996]} 1. e4 {[%emt 0:00:16]} c6 {[%emt 0:00:09]} 2. d4 {[%emt 0:00:59]} d5 {[%emt 0:00:07]} 3. exd5 {[%emt 0:00:43]} cxd5 {[%emt 0:00:08]} 4. Nf3 {[%emt 0:00:21]} Nc6 {[%emt 0:00:21]} 5. Be2 {[%emt 0:00:37]} Nf6 {[%emt 0:00:25]} 6. Nc3 {[%emt 0:00:49]} Bg4 {[%emt 0:01:17][%cal Bc8g4,Bg4h5,Bh5g6][%mdl 32] B13: Caro-Kann: Exchange Variation and Panov-Botvinnik Attack.} 7. O-O {[%emt 0:01:37]} e6 {[%emt 0:00:10]} 8. a3 {[%emt 0:00:50] Against Bb4} a6 {[%emt 0:00:22] Black is slightly better.} 9. Bg5 {[%emt 0:03:59]} Bd6 {[%emt 0:01:11] [#]} 10. Re1 $146 {[%emt 0:03:21]} ({Predecessor:} 10. h3 Bh5 11. Kh1 h6 12. Bh4 Qc7 13. Bxf6 gxf6 14. Re1 Bxf3 15. Bxf3 O-O-O 16. Bxd5 exd5 17. Nxd5 {1-0 (68) Vasiliev,O (2160)-Vovinkina,N (2132) Tel Aviv 2002}) 10... Qc7 {[%emt 0:02:15]} 11. h3 {[%emt 0:01:42]} Bh5 {[%emt 0:01:19]} 12. g4 {[%emt 0:04:26]} (12. Nd2 $11 {deserves consideration.} Bg6 13. Bd3) 12... Bg6 $15 {[%emt 0:01:27]} 13. Bxf6 {[%emt 0:02:51] White does not recover from this.} (13. Bd3 $15) 13... gxf6 $19 {[%emt 0:00:23]} 14. Nh4 {[%emt 0:00:44]} O-O-O {[%emt 0:01:24]} 15. b4 {[%emt 0:01:30] [#]} Nxd4 $1 {[%emt 0:03:15][%mdl 512]} 16. Qxd4 {[%emt 0:12:12]} Be5 {[%emt 0:00:08]} 17. Qc5 {[%emt 0:03:39]} (17. Nxd5 Rxd5 18. Qe3) 17... Qxc5 {[%emt 0:00:38][%mdl 64] Remove Defender} 18. bxc5 {[%emt 0:00:10]} Bxc3 {[%emt 0:00:06]} 19. Nxg6 {[%emt 0:00:32]} hxg6 {[%emt 0:00:15]} 20. Kg2 {[%emt 0:00:49]} Bxa1 {[%emt 0:00:22]} 21. Rxa1 {[%emt 0:00:12][%mdl 4096] Endgame KRR-KRB} Kc7 {[%emt 0:00:11]} 22. Bf3 {[%emt 0:04:22]} Kc6 {[%emt 0:02:20]} 23. Rb1 {[%emt 0:00:56]} Rd7 {[%emt 0:00:29]} 24. c4 {[%emt 0:00:37]} Kxc5 {[%emt 0:00:14]} 25. cxd5 {[%emt 0:00:16]} exd5 {[%emt 0:00:09]} 26. Rc1+ {[%emt 0:01:11]} Kb6 {[%emt 0:00:08]} 27. Kg3 {[%emt 0:01:09]} Ka7 {[%emt 0:00:35]} 28. Rd1 {[%emt 0:00:57]} d4 {[%emt 0:00:06]} 29. Be4 {[%emt 0:01:18]} Rc8 {[%emt 0:00:10]} 30. a4 {[%emt 0:03:38]} Rc3+ {[%emt 0:00:20]} 31. Rd3 {[%emt 0:01:05]} Rxd3+ {[%emt 0:00:16]} 32. Bxd3 {[%emt 0:00:17] KR-KB} g5 {[%emt 0:00:51] [#] Hoping for ...Kb6.} 33. Kf3 {[%emt 0:01:15]} Re7 {[%emt 0:00:44] Threatens to win with ...Kb6.} 34. Kg3 {[%emt 0:01:19]} Kb6 {[%emt 0:00:11]} 35. h4 {[%emt 0:01:07]} gxh4+ {[%emt 0:00:06]} 36. Kxh4 {[%emt 0:00:38]} Re5 {[%emt 0:00:06]} 37. Bc4 {[%emt 0:02:19]} Ka5 {[%emt 0:00:15]} 38. Bxf7 {[%emt 0:00:51]} d3 {[%emt 0:00:08] Black mates.} 39. Bb3 {[%emt 0:01:11]} Kb4 {[%emt 0:00:44]} 40. Bd1 {[%emt 0:00:31]} Re1 {[%emt 0:00:06]} 41. Bf3 {[%emt 0:01:21]} d2 {[%emt 0:00:09]} 42. Bxb7 {[%emt 0:02:38]} d1=Q {[%emt 0:00:17]} 43. Bxa6 {[%emt 0:00:13]} Qf3 {[%emt 0:00:49] Weighted Error Value: White=0.48/Black=0.10 (very precise)} 0-1

[Event "Chhattisgarh Masters GM 2022"]
[Site "Chhattisgarh"]
[Date "2022.09.21"]
[Round "3.19"]
[White "Ratnakaran, K.."]
[Black "Vignesh B"]
[Result "1-0"]
[ECO "B32"]
[WhiteElo "2352"]
[BlackElo "2083"]
[Annotator "TA"]
[PlyCount "97"]
[EventDate "2022.09.19"]
[EventCountry "IND"]
[SourceTitle "playchess.com"]
[Source "ChessBase"]
[SourceQuality "1"]
[TimeControl "5400+30"]

{[%evp 21,97,32,43,8,21,8,14,-6,0,-8,0,-36,-27,-38,1,0,6,13,20,0,11,-18,-26,-45,-32,-165,-168,-188,-172,-203,6,18,0,0,61,74,267,273,543,543,522,419,740,737,684,300,297,257,864,856,905,922,905,903,1006,875,897,876,897,897,897,894,893,884,874,832,896,731,6798,5639,29980,29981,29981,29981,29983,29984,29983,29976]} 1. e4 {[%emt 0:00:03]} c5 {[%emt 0:00:08]} 2. Nf3 {[%emt 0:00:07]} Nc6 {[%emt 0:00:05]} 3. d4 {[%emt 0:00:07]} cxd4 {[%emt 0:00:03]} 4. Nxd4 {[%emt 0:00:06]} e5 {[%emt 0:00:45]} 5. Nb5 {[%emt 0:00:25]} d6 {[%emt 0:00:35]} 6. c4 {[%emt 0:00:33]} Nf6 {[%emt 0:00:06]} 7. N1c3 {[%emt 0:02:29]} a6 {[%emt 0:00:05]} 8. Na3 {[%emt 0:00:07]} Be6 {[%emt 0:01:03]} 9. Be2 {[%emt 0:05:57]} Rc8 {[%emt 0:00:42]} 10. Be3 {[%emt 0:00:27]} Be7 {[%emt 0:03:01]} 11. O-O {[%emt 0:00:37]} O-O {[%emt 0:01:49]} 12. f3 {[%emt 0:04:07] B32: Sicilian: Löwenthal and Kalashnikov Variations.} Nd7 {[%emt 0:10:05]} 13. Nd5 {[%emt 0:02:27]} Bg5 {[%emt 0:01:11]} 14. Bf2 {[%emt 0:04:18] [#] The position is equal.} Bxd5 $146 {[%emt 0:22:31]} ({Predecessor:} 14... Nc5 15. b4 Nd7 16. b5 Ne7 17. Rb1 Nc5 18. Nc2 f5 19. exf5 Nxf5 20. Ncb4 a5 {0-1 (42) Shorokhov,A (2471)-Khusnutdinov,R (2392) Internet 2006}) 15. exd5 {[%emt 0:05:49]} Ne7 {[%emt 0:15:05][%cal Bc6e7,Be7g6,Bg6e5][%mdl 32]} 16. Nc2 {[%emt 0:01:54]} f5 {[%emt 0:09:41]} 17. a4 {[%emt 0:01:54]} a5 {[%emt 0:07:19]} 18. Na3 {[%emt 0:03:31]} Nc5 {[%emt 0:01:01]} 19. Nb5 {[%emt 0:00:24]} Ng6 {[%emt 0:01:12]} 20. g3 {[%emt 0:01:09]} h5 {[%emt 0:01:27]} 21. f4 {[%emt 0:06:16]} exf4 {[%emt 0:00:37]} 22. Bxh5 {[%emt 0:00:36]} Ne5 {[%emt 0:00:55]} 23. gxf4 {[%emt 0:19:43]} (23. Na7 $15) 23... Bxf4 $19 {[%emt 0:00:24]} 24. Kh1 {[%emt 0:02:35]} Ncd3 {[%emt 0:07:44]} 25. b3 {[%emt 0:04:56] [#]} Rf6 $2 {[%emt 0:14:40]} ({Resist} 25... g6 26. Bxg6 $1 Qg5 27. Bd4 $14 (27. Bh5 Bxh2 28. Kxh2 Kh7 $11)) (25... Bxh2 $1 $19 {[%mdl 512]} 26. Kxh2 f4) 26. Bh4 $1 $36 {[%emt 0:05:18][%mdl 2048] Hoping for Be2. White fights for an advantage. This bishop pair is nice.} g5 {[%emt 0:00:38] White must now prevent ...Rh6.} 27. Rxf4 {[%emt 0:00:35]} gxh4 {[%emt 0:00:31]} (27... Nxf4 $11 28. Bxg5 Nh3 29. Bxf6 Qxf6) 28. Rf1 $14 {[%emt 0:03:09]} Qb6 $2 {[%emt 0:00:32] White stays focused until the end.} (28... Qf8 $16 {was called for.}) 29. Qe2 $18 {[%emt 0:05:51]} Kh7 $2 {[%emt 0:00:17]} (29... f4 30. Rad1 Rcf8) 30. Rad1 {[%emt 0:04:28][%cal Ba1d1,Bd1d4,Bd4h4,Bh4h3][%mdl 32]} Nc5 {[%emt 0:00:44]} 31. Rd4 {[%emt 0:01:01]} Rcf8 {[%emt 0:00:28]} (31... Qd8 $142 32. Rxh4 Rh6) 32. Rxh4 {[%emt 0:02:02][%cal Oh5g6] White wants to mate with Bg6+!} Rh6 {[%emt 0:00:06] Inhibits Bg6+.} 33. Nd4 {[%emt 0:03:14]} (33. Qe3 $142 {[%cal Oh5g6] Threatening mate with Bg6+!} f4 34. Qh3) 33... Qd8 {[%emt 0:00:30]} 34. Rh3 {[%emt 0:02:49]} ({Avoid the trap} 34. Nxf5 $2 {[#]} Rxf5 $1 35. Bg6+ Kg7 36. Rxh6 Rxf1+ 37. Qxf1 Kxh6 $19) 34... Qg5 {[%emt 0:00:56]} (34... f4 35. Rg1 Rg8 36. Rxg8 Qxg8) 35. Rg1 {[%emt 0:04:37]} Qf6 {[%emt 0:00:08]} 36. Qg2 {[%emt 0:00:38][%cal Oh3g3] White threatens Rg3! and mate.} Ncd3 {[%emt 0:00:53]} 37. Ne6 {[%emt 0:01:20]} Rc8 {[%emt 0:00:13]} 38. Be2 {[%emt 0:01:13] Intending Qg7+ and mate.} Nf2+ {[%emt 0:00:45]} 39. Qxf2 {[%emt 0:00:04]} Rxh3 {[%emt 0:00:26]} 40. Ng5+ {[%emt 0:00:06]} Kh8 {[%emt 0:00:32]} 41. Nxh3 {[%emt 0:00:05] Rg5 is the strong threat.} Rg8 {[%emt 0:00:13] Inhibits Rg5.} 42. Rxg8+ {[%emt 0:02:10]} Kxg8 {[%emt 0:00:06]} 43. Qg3+ {[%emt 0:00:04]} Kf8 {[%emt 0:00:04]} 44. Qg5 {[%emt 0:00:12]} Qh8 {[%emt 0:00:16]} 45. Qxf5+ {[%emt 0:01:08]} Ke7 {[%emt 0:00:12]} 46. Qe6+ {[%emt 0:00:31] White mates.} Kd8 {[%emt 0:00:06]} 47. Qxd6+ {[%emt 0:00:03]} Nd7 {[%emt 0:00:02]} 48. Bg4 {[%emt 0:00:20][%csl Gg4][%cal Rd6d7]} Qa1+ {[%emt 0:00:06]} 49. Ng1 {[%emt 0:00:06] Weighted Error Value: White=0.41/Black=0.64} 1-0

[Event "Chhattisgarh Masters GM 2022"]
[Site "Chhattisgarh"]
[Date "2022.09.21"]
[Round "3.20"]
[White "Luong Phuong Hanh"]
[Black "Sourath Biswas"]
[Result "1-0"]
[ECO "A49"]
[WhiteElo "2056"]
[BlackElo "2302"]
[Annotator "TA"]
[PlyCount "121"]
[EventDate "2022.09.19"]
[EventCountry "IND"]
[SourceTitle "playchess.com"]
[Source "ChessBase"]
[SourceQuality "1"]
[TimeControl "5400+30"]

{[%evp 11,121,7,18,8,20,9,1,22,31,20,14,14,14,14,17,8,11,9,45,29,33,27,91,64,130,141,137,124,143,131,129,88,92,90,310,56,73,11,11,0,0,-43,-16,-34,0,-20,0,0,85,76,103,101,100,100,104,101,94,84,84,87,105,96,101,109,103,70,215,205,240,238,231,227,224,189,187,130,410,396,788,780,674,738,617,535,504,531,1388,1276,1310,1051,924,682,5127,1423,12842,12842,12841,12840,12841,12841,12844,12845,12849,12845,12848,12844,12844,12845,12845,12845,12846,12847]} 1. d4 {[%emt 0:00:05]} Nf6 {[%emt 0:02:17]} 2. Nf3 {[%emt 0:00:10]} g6 {[%emt 0:00:07]} 3. g3 {[%emt 0:00:06]} Bg7 {[%emt 0:00:04]} 4. Bg2 {[%emt 0:00:08]} O-O {[%emt 0:00:08]} 5. O-O {[%emt 0:00:07]} d6 {[%emt 0:00:05][%cal Bd7d6,Bd6d5][%mdl 32]} 6. a4 {[%emt 0:00:06]} Na6 {[%emt 0:00:22]} 7. Re1 {[%emt 0:00:32] A49: 1 d4 Nf6 2 Nf3 g6 3 g3: Anti-King's Indian systems.} Bf5 {[%emt 0:00:13]} 8. Nc3 {[%emt 0:04:18]} d5 {[%emt 0:00:06] Against e4} 9. Nh4 {[%emt 0:00:26] [#] The position is equal.} Bg4 $146 {[%emt 0:07:21]} ({Predecessor:} 9... Be6 10. e4 dxe4 11. Nxe4 Nxe4 12. Bxe4 Bd5 13. Bxd5 Qxd5 14. Rxe7 Qxd4 15. Qxd4 Bxd4 {½-½ (30) Cosma,E (2337)-Makropoulou,M (2245) Braila 2009}) 10. Bg5 {[%emt 0:05:28]} c6 {[%emt 0:00:06]} 11. Qd2 {[%emt 0:00:28]} Re8 {[%emt 0:00:25]} 12. e4 {[%emt 0:01:01]} dxe4 {[%emt 0:00:28]} 13. Nxe4 {[%emt 0:00:58]} Nxe4 {[%emt 0:00:06]} (13... Qd7 {feels hotter.} 14. Bh6 Rad8 15. c3 Nxe4 16. Rxe4 Bf6) 14. Rxe4 {[%emt 0:00:12]} Be6 {[%emt 0:00:04]} (14... f5 $5 {[%cal Rf5e4]} 15. Re6 Nc7 $15) 15. Rae1 {[%emt 0:00:40]} Nc7 {[%emt 0:08:54]} 16. c3 {[%emt 0:03:22][%cal Bc2c3,Bc3c4][%mdl 32]} Nd5 {[%emt 0:08:53]} (16... Bf6 $11) 17. c4 {[%emt 0:03:23]} Nf6 {[%emt 0:01:21]} (17... Nc7 $1 $14) 18. Rxe6 $16 {[%emt 0:00:15]} fxe6 {[%emt 0:00:06]} 19. Bh3 $1 {[%emt 0:00:13]} (19. Rxe6 $6 Qd7 20. Bh3 Ne4 21. Rxe4 Qxh3 $11) 19... Rf8 {[%emt 0:13:00]} 20. Bxe6+ {[%emt 0:00:28]} Kh8 {[%emt 0:00:05]} 21. d5 {[%emt 0:04:05]} cxd5 {[%emt 0:18:47]} 22. cxd5 {[%emt 0:00:07]} Qb6 $2 {[%emt 0:00:44]} (22... Qe8 $16) 23. Be3 $2 {[%emt 0:00:56] This bishop pair is nice.} (23. g4 $18) 23... Ne4 $14 {[%emt 0:01:20][%csl LRb2,LRd2] [#]} 24. Qc2 {[%emt 0:04:19]} (24. Qd3 $1 $16 Qb4 25. Rc1) 24... Qb4 $11 {[%emt 0:00:04]} 25. Re2 {[%emt 0:00:27]} b6 $1 {[%emt 0:06:32]} 26. Bxb6 {[%emt 0:13:42]} Nxg3 {[%emt 0:00:09]} 27. hxg3 {[%emt 0:01:24]} Qxb6 {[%emt 0:00:03]} 28. Kg2 {[%emt 0:02:11]} Qd4 {[%emt 0:06:06]} 29. Nf3 {[%emt 0:00:58][%cal Bh4f3,Bf3e5,Be5d7][%mdl 32]} Qf6 {[%emt 0:03:54]} (29... Qb4 $11 {keeps the balance.}) 30. Ne5 $16 {[%emt 0:11:19] Active counter play!} Rab8 {[%emt 0:08:04]} 31. f4 {[%emt 0:01:37][%cal Bf2f4,Bf4g5][%mdl 32]} g5 {[%emt 0:10:24]} 32. Nd7 $1 {[%emt 0:01:47][%csl LRb8,LRf6,LRf8]} Qh6 {[%emt 0:00:03] [#]} 33. fxg5 {[%emt 0:08:55]} ({Much worse is} 33. Nxb8 $6 gxf4 34. Rf2 (34. Nd7 $2 f3+ 35. Kg1 fxe2 $19) 34... Rxb8 35. Rxf4 Qxf4 36. gxf4 Rxb2 $11) 33... Qh5 {[%emt 0:03:23][%cal Of8f1]} 34. Nxb8 {[%emt 0:03:18] Chess con chili.} Qf3+ {[%emt 0:00:55]} 35. Kh2 {[%emt 0:00:03]} Qh5+ {[%emt 0:00:04]} 36. Bh3 {[%emt 0:02:27]} Rxb8 {[%emt 0:00:03]} 37. b4 $1 {[%emt 0:01:31]} ({But not} 37. Rxe7 $2 Rxb2 38. Qxb2 Bxb2 $19) 37... Qxg5 {[%emt 0:00:16]} 38. Qc7 {[%emt 0:03:51] Prevents Be5.} Rf8 {[%emt 0:00:07]} (38... Rg8 $14) 39. Qxa7 $18 {[%emt 0:01:33]} Rf3 {[%emt 0:00:04]} 40. Qb8+ {[%emt 0:00:45]} Rf8 {[%emt 0:00:50]} 41. Qc7 {[%emt 0:00:42]} Bf6 {[%emt 0:03:03]} 42. b5 {[%emt 0:16:24] Hoping for b6.} Qxd5 {[%emt 0:01:51]} 43. b6 {[%emt 0:00:23]} ({Better is} 43. Qf4 $18) 43... Qd1 $2 {[%emt 0:00:27][%mdl 8192]} (43... Qf3 $16 {might work better.} 44. Rg2 Qe3) 44. Qc2 {[%emt 0:00:36]} Qa1 {[%emt 0:00:00]} (44... Qd5 45. Qd2 Qb3) 45. b7 {[%emt 0:00:00] aiming for Qc8. White is clearly winning.} Bd4 {[%emt 0:00:00]} 46. Bg2 {[%emt 0:00:00]} Bg1+ {[%emt 0:00:00]} 47. Kh3 {[%emt 0:00:00]} Qg7 {[%emt 0:00:00]} 48. Qe4 {[%emt 0:00:00]} Ba7 {[%emt 0:00:00]} 49. Qxe7 {[%emt 0:00:00]} Qh6+ {[%emt 0:00:00]} 50. Qh4 {[%emt 0:00:00]} Qg6 {[%emt 0:00:00]} 51. Be4 {[%emt 0:00:00]} Qe6+ {[%emt 0:00:00]} 52. Kh2 {[%emt 0:00:00][%csl Ge4][%cal Rh4h7]} Qf7 {[%emt 0:00:00]} 53. Rc2 {[%emt 0:00:00]} Bb8 {[%emt 0:00:00] [#]} 54. Qxh7+ $1 {[%emt 0:01:48][%mdl 512]} Qxh7+ {[%emt 0:00:00]} 55. Bxh7 {[%emt 0:00:04]} Kxh7 {[%emt 0:00:00][%mdl 4096] Endgame KRB-KR} 56. Rc8 {[%emt 0:00:18]} Kg7 {[%emt 0:00:00]} 57. a5 {[%emt 0:00:14][%cal Ba4a5,Ba5a6][%mdl 32]} Bd6 {[%emt 0:00:00]} 58. a6 {[%emt 0:00:15]} Rf2+ {[%emt 0:00:00]} 59. Kh3 {[%emt 0:00:27]} Ra2 {[%emt 0:00:00]} 60. Ra8 {[%emt 0:00:25]} Rb2 {[%emt 0:00:00]} 61. Rd8 {[%emt 0:00:22] Weighted Error Value: White=0.27 (precise) /Black=0.33} 1-0